fUSD/lending_fUSD_20251222
["ID","MTS","AMOUNT","RATE_DAILY","PERIOD"]
[399457778,1766370642910,-1130.28190868,0.00015287,2]
[399457779,1766370642919,-1517.64,0.000153,2]
[399457780,1766370642931,-6453.0,0.00015316,2]
[399457781,1766370642940,-2129.0,0.00015321,2]
[399457782,1766370642949,-505.93150973,0.000154,2]
[399457783,1766370642958,-500.0,0.00015493,2]
[399457784,1766370642971,-16703.53114941,0.00015556,2]
[399457785,1766370642980,-2229.34280704,0.00015807,2]
[399457786,1766370642990,-2500.0,0.00015835,2]
[399457787,1766370642999,-2500.0,0.00015835,2]
[399457788,1766370643009,-2500.0,0.00015835,2]
[399457789,1766370643018,-2500.0,0.00015835,2]
[399457790,1766370643028,-2500.0,0.00015835,2]
[399457791,1766370643037,-2500.0,0.00015835,2]
[399457792,1766370643047,-784.25308604,0.00015845,2]
[399457794,1766370643056,-23722.5581067,0.00016,2]
[399457795,1766370643066,-1134324.31320243,0.00016,4]
[399457796,1766370643075,-8280.5657483,0.00016097,2]
[399457797,1766370643084,-19252.74046857,0.00016097,2]
[399457798,1766370643094,-5000.00490535,0.000162,5]
[399457799,1766370643103,-500.0,0.00016381,2]
[399457800,1766370643112,-500.0,0.00016381,2]
[399457801,1766370643122,-3000.0,0.00016383,2]
[399457802,1766370643131,-2506.61121475,0.00016383,2]
[399457803,1766370643141,-2853.92874992,0.00016383,2]
[399457804,1766370643151,-1507.00799583,0.00016383,2]
[399457805,1766370643165,-626.98496752,0.00016383,2]
[399457806,1766370643174,-3000.0,0.00016383,2]
[399457807,1766370643184,-500.0,0.00016437,2]
[399457808,1766370643194,-500.0,0.00016437,2]
[399457809,1766370643204,-778.21225731,0.00016438,2]
[399457810,1766370643214,-778.21225731,0.00016438,2]
[399457811,1766370643224,-778.21225731,0.00016438,2]
[399457812,1766370643234,-778.21225731,0.00016438,2]
[399457814,1766370643243,-778.21225731,0.00016438,2]
[399457815,1766370643253,-778.21225731,0.00016438,2]
[399457816,1766370643262,-778.21225731,0.00016438,2]
[399457817,1766370643272,-778.21225731,0.00016438,2]
[399457818,1766370643283,-778.21225731,0.00016438,2]
[399457819,1766370643294,-778.21225731,0.00016438,2]
[399457820,1766370643304,-778.21225731,0.00016438,2]
[399457821,1766370643314,-778.21225731,0.00016438,2]
[399457822,1766370643324,-778.21225731,0.00016438,2]
[399457823,1766370643333,-778.21225731,0.00016438,2]
[399457824,1766370643343,-778.21225731,0.00016438,2]
[399457825,1766370643353,-778.21225731,0.00016438,2]
[399457826,1766370643366,-778.21225731,0.00016438,2]
[399457827,1766370643376,-778.21225731,0.00016438,2]
[399457828,1766370643386,-778.21225731,0.00016438,2]
[399457829,1766370643398,-778.21225731,0.00016438,2]
[399457830,1766370643407,-778.21225731,0.00016438,2]
[399457831,1766370643417,-778.21225731,0.00016438,2]
[399457832,1766370643426,-778.21225731,0.00016438,2]
[399457833,1766370643436,-778.21225731,0.00016438,2]
[399457834,1766370643446,-778.21225731,0.00016438,2]
[399457835,1766370643456,-778.21225731,0.00016438,2]
[399457836,1766370643465,-778.21225731,0.00016438,2]
[399457837,1766370643477,-778.21225731,0.00016438,2]
[399457838,1766370643490,-778.21225731,0.00016438,2]
[399457839,1766370643499,-778.21225731,0.00016438,2]
[399457840,1766370643510,-778.21225731,0.00016438,2]
[399457841,1766370643520,-778.21225731,0.00016438,2]
[399457842,1766370643530,-778.21225731,0.00016438,2]
[399457843,1766370643540,-778.21225731,0.00016438,2]
[399457844,1766370643550,-778.21225731,0.00016438,2]
[399457845,1766370643565,-778.21225731,0.00016438,2]
[399457846,1766370643574,-778.21225731,0.00016438,2]
[399457847,1766370643583,-778.21225731,0.00016438,2]
[399457848,1766370643593,-778.21225731,0.00016438,2]
[399457849,1766370643603,-778.21225731,0.00016438,2]
[399457850,1766370643612,-778.21225731,0.00016438,2]
[399457851,1766370643622,-778.21225731,0.00016438,2]
[399457852,1766370643631,-778.21225731,0.00016438,2]
[399457854,1766370643640,-778.21225731,0.00016438,2]
[399457856,1766370643650,-778.21225731,0.00016438,2]
[399457858,1766370643659,-778.21225731,0.00016438,2]
[399457860,1766370643668,-778.21225731,0.00016438,2]
[399457862,1766370643678,-778.21225731,0.00016438,2]
[399457864,1766370643688,-778.21225731,0.00016438,2]
[399457866,1766370643697,-778.21225731,0.00016438,2]
[399457868,1766370643707,-778.21225731,0.00016438,2]
[399457870,1766370643717,-778.21225731,0.00016438,2]
[399457872,1766370643727,-778.21225731,0.00016438,2]
[399457874,1766370643736,-778.21225731,0.00016438,2]
[399457876,1766370643746,-778.21225731,0.00016438,2]
[399457878,1766370643758,-778.21225731,0.00016438,2]
[399457880,1766370643768,-778.21225731,0.00016438,2]
[399457882,1766370643777,-778.21225731,0.00016438,2]
[399457884,1766370643786,-778.21225731,0.00016438,2]
[399457886,1766370643796,-778.21225731,0.00016438,2]
[399457888,1766370643806,-778.21225731,0.00016438,2]
[399457890,1766370643815,-778.21225731,0.00016438,2]
[399457893,1766370643825,-778.21225731,0.00016438,2]
[399457895,1766370643834,-4902.643734,0.00016438,2]
[399457897,1766370643844,-4902.643734,0.00016438,2]
[399457899,1766370643853,-4902.643734,0.00016438,2]
[399457900,1766370643862,-4902.643734,0.00016438,2]
[399457901,1766370643871,-4902.643734,0.00016438,2]
[399457902,1766370643881,-4902.643734,0.00016438,2]
[399457903,1766370643892,-4902.643734,0.00016438,2]
[399457904,1766370643901,-4902.643734,0.00016438,2]
[399457905,1766370643911,-4902.643734,0.00016438,2]
[399457906,1766370643921,-4902.643734,0.00016438,2]
[399457907,1766370643930,-4902.643734,0.00016438,2]
[399457908,1766370643940,-4902.643734,0.00016438,2]
[399457909,1766370643951,-4902.643734,0.00016438,2]
[399457910,1766370643961,-4902.643734,0.00016438,2]
[399457911,1766370643970,-4902.643734,0.00016438,2]
[399457912,1766370643979,-4902.643734,0.00016438,2]
[399457913,1766370643989,-4902.643734,0.00016438,2]
[399457914,1766370643998,-4902.643734,0.00016438,2]
[399457915,1766370644009,-4902.643734,0.00016438,2]
[399457916,1766370644018,-4902.643734,0.00016438,2]
[399457917,1766370644027,-4902.643734,0.00016438,2]
[399457918,1766370644036,-4902.643734,0.00016438,2]
[399457919,1766370644046,-4902.643734,0.00016438,2]
[399457920,1766370644055,-4902.643734,0.00016438,2]
[399457921,1766370644064,-4902.643734,0.00016438,2]
[399457922,1766370644073,-4902.64373395,0.00016438,2]
[399457923,1766370644083,-800.66640866,0.00016438,2]
[399457924,1766370644093,-500.26932841,0.00016473,2]
[399457925,1766370644102,-500.0,0.00016473,2]
[399457926,1766370644112,-500.0,0.00016473,2]
[399457927,1766370644121,-556.12570782,0.00016473,2]
[399457928,1766370644130,-500.89704022,0.00016473,2]
[399457929,1766370644139,-500.0,0.00016473,2]
[399457930,1766370644149,-500.85006285,0.00016473,2]
[399457931,1766370644158,-334.69874754,0.00016473,2]
[399457932,1766370644168,-500.0,0.00016473,2]
[399457933,1766370644178,-500.14110793,0.00016473,2]
[399457934,1766370644187,-500.93365607,0.00016473,2]
[399457935,1766370644196,-639.90034145,0.00016473,2]
[399457936,1766370644206,-500.23431497,0.00016473,2]
[399457937,1766370644215,-500.0,0.00016473,2]
[399457938,1766370644226,-500.364387,0.00016473,2]
[399457939,1766370644237,-500.0,0.00016473,2]
[399457940,1766370644247,-182.65808094,0.00016473,2]
[399457941,1766370644258,-500.40105858,0.00016473,2]
[399457942,1766370644268,-500.53011343,0.00016473,2]
[399457943,1766370644278,-500.84493932,0.00016473,2]
[399457944,1766370644288,-500.63864721,0.00016473,2]
[399457945,1766370644298,-500.0,0.00016473,2]
[399457946,1766370644307,-500.76356067,0.00016473,2]
[399457947,1766370644316,-500.0,0.00016473,2]
[399457948,1766370644326,-500.94017287,0.00016473,2]
[399457949,1766370644345,-500.88851044,0.00016473,2]
[399457950,1766370644355,-500.4866391,0.00016473,2]
[399457951,1766370644364,-500.23422882,0.00016473,2]
[399457952,1766370644374,-500.84177563,0.00016473,2]
[399457953,1766370644383,-156.58285256,0.00016473,2]
[399457954,1766370644394,-160.23136935,0.00016473,2]
[399457955,1766370644403,-500.0,0.00016473,2]
[399457956,1766370644413,-519.00415051,0.00016473,2]
[399457957,1766370644423,-160.22398459,0.00016473,2]
[399457958,1766370644434,-500.31559723,0.00016473,2]
[399457959,1766370644444,-160.23033873,0.00016473,2]
[399457960,1766370644455,-500.23459526,0.00016473,2]
[399457961,1766370644465,-500.89063362,0.00016473,2]
[399457962,1766370644478,-500.0,0.00016473,2]
[399457963,1766370644488,-500.28027426,0.00016473,2]
[399457964,1766370644498,-500.5380025,0.00016473,2]
[399457965,1766370644508,-500.0,0.00016473,2]
[399457966,1766370644519,-500.0,0.00016473,2]
[399457967,1766370644528,-500.71273679,0.00016473,2]
[399457968,1766370644538,-509.29558158,0.00016473,2]
[399457969,1766370644548,-500.0,0.00016473,2]
[399457970,1766370644560,-500.0,0.00016473,2]
[399457971,1766370644570,-500.0,0.00016473,2]
[399457972,1766370644579,-500.0,0.00016473,2]
[399457973,1766370644588,-500.0,0.00016473,2]
[399457974,1766370644598,-500.0,0.00016473,2]
[399457975,1766370644608,-500.0,0.00016473,2]
[399457976,1766370644618,-180.96115395,0.00016473,2]
[399457977,1766370644628,-506.35717119,0.00016473,2]
[399457978,1766370644638,-500.47037435,0.00016473,2]
[399457979,1766370644648,-500.5955787,0.00016473,2]
[399457980,1766370644658,-566.05199029,0.00016473,2]
[399457981,1766370644668,-164.86405043,0.00016473,2]
[399457982,1766370644678,-500.0,0.00016473,2]
[399457983,1766370644687,-500.69670875,0.00016473,2]
[399457984,1766370644697,-500.59656143,0.00016473,2]
[399457985,1766370644707,-500.71610448,0.00016473,2]
[399457986,1766370644716,-500.92519729,0.00016473,2]
[399457987,1766370644727,-162.4264826,0.00016473,2]
[399457988,1766370644737,-570.44343091,0.00016473,2]
[399457989,1766370644747,-500.25404697,0.00016473,2]
[399457990,1766370644756,-500.0,0.00016473,2]
[399457991,1766370644766,-500.0,0.00016473,2]
[399457992,1766370644775,-160.22953204,0.00016473,2]
[399457993,1766370644784,-150.2134934,0.00016473,2]
[399457994,1766370644794,-160.22953259,0.00016473,2]
[399457995,1766370644805,-500.0,0.00016473,2]
[399457996,1766370644814,-500.23816043,0.00016473,2]
[399457997,1766370644824,-160.2285992,0.00016473,2]
[399457998,1766370644835,-500.40899585,0.00016473,2]
[399457999,1766370644845,-207.53128657,0.00016473,2]
[399458000,1766370644857,-500.0,0.00016473,2]
[399458001,1766370644866,-500.0,0.00016473,2]
[399458002,1766370644880,-530.18655741,0.00016473,2]
[399458003,1766370644890,-500.19873097,0.00016473,2]
[399458004,1766370644899,-499.92308063,0.00016473,2]
[399458005,1766370644909,-500.0,0.00016473,2]
[399458006,1766370644919,-1093.6,0.00016784,2]
[399458007,1766370644929,-6542.0,0.00016848,2]
[399458008,1766370644940,-1912.0,0.00016852,2]
[399458009,1766370644950,-4554.41280771,0.000169,2]
[399458010,1766370644959,-784.25308604,0.000169,2]
[399458011,1766370644969,-256.92797377,0.000169,2]
[399458012,1766370644979,-169.11922478,0.000169,2]
[399458013,1766370644989,-8280.5657483,0.0001692,2]
[399458014,1766370644999,-19252.74046857,0.0001692,2]
[399458015,1766370645010,-3500.0,0.00016931,2]
[399458016,1766370645020,-3007.1328153,0.00016931,2]
[399458017,1766370645031,-150.0,0.00016973,2]
[399458018,1766370645040,-150.11026087,0.00016973,2]
[399458019,1766370645050,-500.0,0.00016973,2]
[399458020,1766370645060,-605.42609762,0.00016973,2]
[399458021,1766370645069,-150.0,0.00016973,2]
[399458022,1766370645079,-1490.09817043,0.0001699,2]
[399458023,1766370645089,-1490.09817043,0.0001699,2]
[399458024,1766370645099,-180.87129964,0.00016997,2]
[399458025,1766370645110,-151.0,0.00016997,2]
[399458026,1766370645120,-500.0,0.00016999,2]
[399458027,1766370645130,-507.56768352,0.00016999,2]
[399458028,1766370645140,-513.1625593,0.00016999,2]
[399458029,1766370645149,-500.0,0.00016999,2]
[399458030,1766370645159,-500.0,0.00016999,2]
[399458031,1766370645168,-507.5550191,0.00016999,2]
[399458032,1766370645178,-508.44264372,0.00016999,2]
[399458033,1766370645187,-500.0,0.00016999,2]
[399458034,1766370645197,-500.0,0.00016999,2]
[399458035,1766370645207,-500.0,0.00016999,2]
[399458036,1766370645217,-300.0,0.00016999,2]
[399458037,1766370645227,-666.0,0.00016999,2]
[399458038,1766370645237,-300.0,0.00016999,2]
[399458039,1766370645246,-300.0,0.00016999,2]
[399458040,1766370645255,-300.0,0.00016999,2]
[399458041,1766370645270,-666.0,0.00016999,2]
[399458042,1766370645280,-307.86580758,0.00016999,2]
[399458043,1766370645289,-754174.00227368,0.00017,2]
[399458044,1766370646051,-291.71752767,0.00017,2]
[399458045,1766370646063,-7232889.60057083,0.00017,2]
[399458046,1766370646112,-591.11871023,0.00017,2]
[399458047,1766370646144,-400.021404,0.00017,2]
[399458048,1766370646175,-653.7286811,0.00017,2]
[399458049,1766370646187,-926.039998,0.00017,2]
[399458050,1766370646201,-406.95691,0.00017,2]
[399458068,1766370647296,-446.54033922,9.511e-05,2]
[399458069,1766370647330,-4129.50747228,9.511e-05,2]
[399458070,1766370647340,-266.80887864,9.511e-05,2]
[399458071,1766370647351,-3349.62082942,9.511e-05,2]
[399458072,1766370647361,-646.30069778,9.511e-05,2]
[399458073,1766370692727,160.3,9.321e-05,2]
[399458074,1766370692765,208.869,9.321e-05,2]
[399458075,1766370692812,208.87,0.00034491,39]
[399458076,1766370699292,152.0,0.00035616,30]
[399458077,1766370706074,350.25337363,9.51e-05,2]
[399458078,1766370711311,500.0,9.51e-05,2]
[399458079,1766370711387,500.0,9.51e-05,2]
[399458080,1766370711460,460.84276483,9.51e-05,2]
[399458081,1766370714286,500.0,9.51e-05,2]
[399458083,1766370742410,150.0,0.00035616,30]
[399458085,1766370757318,151.0,0.00035,31]
[399458089,1766370781597,150.0,9.51e-05,2]
[399458090,1766370790559,150.0,0.00035616,30]
[399458097,1766370860569,151.0,0.000329,31]
[399458102,1766370898052,151.0,0.000329,31]
[399458104,1766370901243,300.0,9.51e-05,2]
[399458105,1766370901335,1200.0,9.51e-05,2]
[399458106,1766370902035,151.0,0.000329,31]
[399458107,1766370903643,151.0,0.000329,31]
[399458110,1766370920226,500.0,9.411e-05,2]
[399458116,1766370961981,150.0,9.51e-05,2]
[399458118,1766370967205,151.0,0.00031851,31]
[399458119,1766370967368,300.0,9.51e-05,2]
[399458120,1766370968699,151.0,0.00031851,31]
[399458121,1766370969438,7400.01,9.411e-05,2]
[399458122,1766370969463,10000.01,9.411e-05,2]
[399458123,1766370969485,10000.01,9.411e-05,2]
[399458124,1766370969509,10000.01,9.411e-05,2]
[399458125,1766370969532,886.1761,9.411e-05,2]
[399458126,1766370971662,6009.5,0.00035616,30]
[399458127,1766370972694,151.0,0.00031851,31]
[399458128,1766370974326,212.76268,0.00031851,31]
[399458129,1766370975533,2500.0,9.411e-05,2]
[399458130,1766370977768,151.0,0.00031269,31]
[399458132,1766370980592,500.0,9.51e-05,2]
[399458133,1766370980637,500.0,9.51e-05,2]
[399458134,1766370980678,500.0,9.51e-05,2]
[399458135,1766370980739,500.0,9.51e-05,2]
[399458136,1766370980781,500.0,9.51e-05,2]
[399458137,1766370980821,500.0,9.51e-05,2]
[399458138,1766370980864,500.0,9.51e-05,2]
[399458139,1766370980908,500.0,9.51e-05,2]
[399458140,1766370980950,500.0,9.51e-05,2]
[399458141,1766370980993,500.0,9.51e-05,2]
[399458142,1766370981033,500.0,9.51e-05,2]
[399458143,1766370981073,500.0,9.51e-05,2]
[399458144,1766370981140,500.0,9.51e-05,2]
[399458145,1766370981458,113.8339,9.51e-05,2]
[399458146,1766370981483,386.1661,9.51e-05,2]
[399458147,1766370981523,500.0,9.51e-05,2]
[399458148,1766370981563,500.0,9.51e-05,2]
[399458149,1766370981615,500.0,9.51e-05,2]
[399458150,1766370982163,500.0,9.51e-05,2]
[399458151,1766370982205,500.0,9.51e-05,2]
[399458152,1766370982247,500.0,9.51e-05,2]
[399458153,1766370982291,500.0,9.51e-05,2]
[399458154,1766370982337,500.0,9.51e-05,2]
[399458155,1766370982379,393.66915987,9.51e-05,2]
[399458156,1766370982420,500.0,9.51e-05,2]
[399458157,1766370982462,500.0,9.51e-05,2]
[399458158,1766370982504,500.0,9.51e-05,2]
[399458159,1766370982546,500.0,9.51e-05,2]
[399458160,1766370982590,500.0,9.51e-05,2]
[399458161,1766370982631,500.0,9.51e-05,2]
[399458162,1766370982671,500.0,9.51e-05,2]
[399458163,1766370982712,500.0,9.51e-05,2]
[399458164,1766370982761,500.0,9.51e-05,2]
[399458165,1766370982812,500.0,9.51e-05,2]
[399458166,1766370982854,220.17474013,9.51e-05,2]
[399458167,1766370982880,279.82525987,9.51e-05,2]
[399458168,1766370982919,500.0,9.51e-05,2]
[399458169,1766370982959,500.0,9.51e-05,2]
[399458170,1766370982998,500.0,9.51e-05,2]
[399458171,1766370983039,500.0,9.51e-05,2]
[399458172,1766370983089,500.0,9.51e-05,2]
[399458173,1766370983132,500.0,9.51e-05,2]
[399458174,1766370987374,151.0,0.00031269,31]
[399458175,1766371007927,-500.0,9.51e-05,2]
[399458176,1766371007958,-500.0,9.51e-05,2]
[399458177,1766371007997,-500.0,9.51e-05,2]
[399458178,1766371008032,-500.0,9.51e-05,2]
[399458179,1766371021551,300.0,9.51e-05,2]
[399458180,1766371024870,236.9391325,0.00035616,30]
[399458181,1766371026956,395.28595025,9.51e-05,2]
[399458182,1766371039731,505.93,0.00035616,30]
[399458183,1766371042692,222.113074,0.00031269,31]
[399458184,1766371044352,222.113074,0.00031269,31]
[399458185,1766371046817,489.88154862,9.51e-05,2]
[399458186,1766371048526,500.0,0.00035342,30]
[399458187,1766371048712,500.0,0.00035342,30]
[399458188,1766371048904,500.0,0.00035342,30]
[399458189,1766371049055,500.0,0.00035342,30]
[399458190,1766371049252,500.0,0.00035342,30]
[399458191,1766371049400,500.0,0.00035342,30]
[399458192,1766371049565,500.0,0.00035342,30]
[399458193,1766371049710,500.0,0.00035342,30]
[399458194,1766371049862,500.0,0.00035342,30]
[399458195,1766371050012,500.0,0.00035342,30]
[399458196,1766371050185,222.113074,0.00031269,31]
[399458197,1766371052781,222.113074,0.00031269,31]
[399458198,1766371075913,4814.84250113,9.411e-05,2]
[399458199,1766371075942,3437.97789887,9.411e-05,2]
[399458200,1766371087896,1200.0,9.51e-05,2]
[399458202,1766371094145,151.0,0.00035616,31]
[399458203,1766371095600,151.0,0.00035616,31]
[399458204,1766371111634,7965.9,0.00035616,30]
[399458205,1766371124915,554.1216,9.411e-05,2]
[399458206,1766371141708,287.0,9.51e-05,2]
[399458207,1766371141876,150.0,9.51e-05,2]
[399458208,1766371160198,155.641484,0.00035,31]
[399458209,1766371171955,168.6,9.47e-05,2]
[399458210,1766371191443,151.0,0.00035,31]
[399458211,1766371192976,151.0,0.00035,31]
[399458212,1766371194854,151.0,0.00035,31]
[399458213,1766371201235,1200.0,9.51e-05,2]
[399458214,1766371201429,300.0,9.51e-05,2]
[399458215,1766371203576,228.0,9.511e-05,2]
[399458216,1766371209005,2474.31050113,7.945e-05,2]
[399458217,1766371209027,179.98219687,7.945e-05,2]
[399458218,1766371292862,194.945,9.321e-05,2]
[399458219,1766371292922,194.945,0.00034491,39]
[399458220,1766371292960,160.3,9.321e-05,2]
[399458221,1766371321946,150.0,9.51e-05,2]
[399458223,1766371332738,151.0,0.00032877,31]
[399458224,1766371333036,151.0,0.00032877,31]
[399458226,1766371387877,317.0,9.51e-05,2]
[399458227,1766371407202,151.0,0.00035616,31]
[399458228,1766371407557,161.004423,0.00035616,31]
[399458230,1766371460400,170.47,0.00035616,30]
[399458232,1766371501227,300.0,9.51e-05,2]
[399458233,1766371501410,1200.0,9.51e-05,2]
[399458234,1766371501614,150.0,9.51e-05,2]
[399458236,1766371520816,500.0,9.51e-05,2]
[399458237,1766371520865,500.0,9.51e-05,2]
[399458238,1766371520922,500.0,9.51e-05,2]
[399458239,1766371520980,500.0,9.51e-05,2]
[399458240,1766371521036,189.36691599,9.51e-05,2]
[399458241,1766371542460,189.36691599,9.51e-05,2]
[399458242,1766371571834,276.70016517,9.51e-05,2]
[399458243,1766371645014,151.0,0.00035529,31]
[399458244,1766371646551,151.0,0.00035529,31]
[399458245,1766371661591,4692.34880598,9.411e-05,2]
[399458246,1766371661616,10000.01,9.411e-05,2]
[399458247,1766371661640,10000.01,9.411e-05,2]
[399458248,1766371661664,10000.01,9.411e-05,2]
[399458249,1766371661688,10000.01,9.411e-05,2]
[399458250,1766371661712,10000.01,9.411e-05,2]
[399458251,1766371661736,10000.01,9.411e-05,2]
[399458252,1766371661762,10000.01,9.411e-05,2]
[399458253,1766371661785,10000.01,9.411e-05,2]
[399458254,1766371661810,10000.01,9.411e-05,2]
[399458255,1766371662532,-621.47741175,9.411e-05,2]
[399458256,1766371665898,-209.742693,9.411e-05,2]
[399458257,1766371670326,-239.38191194,9.411e-05,2]
[399458258,1766371672355,-323.18928727,9.411e-05,2]
[399458259,1766371676996,-187.54426871,9.411e-05,2]
[399458260,1766371691983,151.0,0.00035616,31]
[399458261,1766371692088,151.0,0.00035616,31]
[399458262,1766371692374,151.0,0.00035616,31]
[399458263,1766371692845,182.161606,0.00035529,31]
[399458264,1766371693302,151.0,0.00035616,31]
[399458265,1766371693607,184.007312,0.00035616,31]
[399458266,1766371693770,1424.40994,9.364e-05,2]
[399458267,1766371694230,182.161606,0.00035529,31]
[399458268,1766371695704,182.161606,0.00035529,31]
[399458269,1766371697416,182.161606,0.00035529,31]
[399458271,1766371726523,242.41930083,0.00035529,31]
[399458272,1766371741233,193.69011562,9.41e-05,2]
[399458273,1766371801179,300.0,9.41e-05,2]
[399458274,1766371801419,1200.0,9.41e-05,2]
[399458279,1766371832262,-1961.94354208,9.411e-05,2]
[399458280,1766371832314,-1491.53744342,9.411e-05,2]
[399458281,1766371836521,-369.76382536,9.411e-05,2]
[399458282,1766371836532,-400.58635861,9.411e-05,2]
[399458283,1766371836574,-110511.59866743,9.411e-05,2]
[399458284,1766371836586,-45245.5388601,9.411e-05,2]
[399458285,1766371836681,-951.59687531,9.411e-05,2]
[399458297,1766371838467,-742793.66004904,9.411e-05,2]
[399458298,1766371838477,-1224.04127782,9.51e-05,2]
[399458299,1766371838487,-2541.41384484,9.51e-05,2]
[399458300,1766371838496,-250.0,9.511e-05,2]
[399458301,1766371838506,-1000.0,9.513e-05,2]
[399458302,1766371838517,-250.0,9.532e-05,2]
[399458303,1766371838527,-151.0,0.0001,2]
[399458304,1766371838537,-151.0,0.0001,2]
[399458305,1766371838546,-151.0,0.0001,2]
[399458306,1766371838556,-151.0,0.0001,2]
[399458307,1766371838565,-151.0,0.0001,2]
[399458308,1766371838575,-151.0,0.0001,2]
[399458309,1766371838585,-151.0,0.0001,2]
[399458310,1766371838594,-151.0,0.0001,2]
[399458311,1766371838603,-151.0,0.0001,2]
[399458312,1766371838612,-151.0,0.0001,2]
[399458313,1766371838622,-151.0,0.0001,2]
[399458314,1766371838632,-151.0,0.0001,2]
[399458315,1766371838641,-151.0,0.0001,2]
[399458316,1766371838650,-151.0,0.0001,2]
[399458317,1766371838659,-151.0,0.0001,2]
[399458318,1766371838668,-151.0,0.0001,2]
[399458319,1766371838677,-151.0,0.0001,2]
[399458320,1766371838688,-151.0,0.0001,2]
[399458321,1766371838698,-151.0,0.0001,2]
[399458322,1766371838708,-151.0,0.0001,2]
[399458323,1766371838717,-420.0,0.00010351,2]
[399458324,1766371838728,-1680.0,0.00010351,2]
[399458325,1766371838738,-250.0,0.00010462,2]
[399458326,1766371838747,-9999.99,0.00011099,2]
[399458327,1766371838758,-309.07,0.00011099,2]
[399458328,1766371838768,-9999.99,0.00011099,2]
[399458329,1766371838778,-9999.99,0.00011099,2]
[399458330,1766371838787,-3678.14,0.00011099,2]
[399458331,1766371838797,-150.99,0.00011099,2]
[399458332,1766371838810,-150.99,0.00011099,2]
[399458333,1766371838819,-4999.99,0.00011099,2]
[399458334,1766371838829,-499.99,0.00011099,2]
[399458335,1766371838839,-999.99,0.00011099,2]
[399458336,1766371838849,-1807.72,0.00011099,2]
[399458337,1766371838858,-405.48,0.00011099,2]
[399458338,1766371838867,-1543.91,0.00011099,2]
[399458339,1766371838878,-299.99,0.00011099,2]
[399458340,1766371838887,-19252.74046859,0.00011099,2]
[399458341,1766371838897,-19252.74046857,0.00011099,2]
[399458342,1766371838906,-19252.74046857,0.00011099,2]
[399458343,1766371838915,-500.0,0.00011099,2]
[399458344,1766371838925,-37779.18,0.00011099,2]
[399458345,1766371838934,-9999.99,0.00011099,2]
[399458346,1766371838944,-9999.99,0.00011099,2]
[399458347,1766371838954,-2315.48,0.000113,2]
[399458348,1766371838963,-500.0,0.00011373,2]
[399458349,1766371838973,-587.0,0.00011386,2]
[399458350,1766371838983,-2351.0,0.00011386,2]
[399458351,1766371838992,-166.66,0.00011404,2]
[399458352,1766371839002,-21404.84,0.00011433,2]
[399458353,1766371839012,-14147.26,0.00011476,2]
[399458354,1766371839021,-500.0,0.00011647,2]
[399458355,1766371839030,-183.14,0.00011687,2]
[399458356,1766371839039,-166.66,0.00011781,2]
[399458357,1766371839049,-168.6,0.00011837,2]
[399458358,1766371839058,-500.0,0.00011856,2]
[399458359,1766371839068,-19252.74046857,0.00011908,2]
[399458360,1766371839078,-1048.1,0.00012067,2]
[399458361,1766371839087,-13319.74,0.00012087,2]
[399458362,1766371839097,-9999.99,0.00012087,2]
[399458363,1766371839107,-166.66,0.00012157,2]
[399458364,1766371839116,-169.43415984,0.00012183,2]
[399458365,1766371839125,-150.0,0.00012237,2]
[399458366,1766371839135,-414.81,0.00012349,2]
[399458367,1766371839144,-250.0,0.00012435,2]